fUST/lending_fUST_20240921
["ID","MTS","AMOUNT","RATE_DAILY","PERIOD"]
[338671031,1726861888940,-500.0,0.00021,2]
[338671032,1726861888949,-500.0,0.00021,2]
[338671033,1726861888958,-601.20463501,0.00021,2]
[338671034,1726861888968,-3000.0,0.00021,2]
[338671035,1726861888976,-150.0,0.00021,2]
[338671036,1726861888986,-3000.0,0.0002101,2]
[338671037,1726861888998,-3000.0,0.0002102,2]
[338671038,1726861889010,-202.0,0.0002102,4]
[338671039,1726861889020,-3000.0,0.0002103,2]
[338671040,1726861889030,-3000.0,0.0002104,2]
[338671041,1726861889039,-3000.0,0.0002105,2]
[338671042,1726861889048,-3000.0,0.0002106,2]
[338671043,1726861889058,-3000.0,0.0002107,2]
[338671044,1726861889067,-3000.0,0.0002108,2]
[338671045,1726861889076,-250.0,0.00021083,2]
[338671046,1726861889086,-3000.0,0.0002109,2]
[338671047,1726861889096,-1351.31,0.00021095,2]
[338671048,1726861889107,-500.0,0.00021095,2]
[338671049,1726861889119,-2528.93,0.00021095,2]
[338671050,1726861889130,-533.89,0.00021095,2]
[338671051,1726861889141,-3000.0,0.000211,2]
[338671052,1726861889152,-3000.0,0.0002111,2]
[338671053,1726861889162,-3000.0,0.0002112,2]
[338671054,1726861889173,-3000.0,0.0002113,2]
[338671055,1726861889183,-3000.0,0.0002114,2]
[338671056,1726861889196,-3000.0,0.0002115,2]
[338671057,1726861889207,-578.26,0.00021156,2]
[338671058,1726861889218,-504.93,0.00021156,2]
[338671059,1726861889228,-599.04,0.00021156,2]
[338671060,1726861889238,-812.5,0.00021156,2]
[338671061,1726861889248,-636.19,0.00021156,2]
[338671062,1726861889258,-620.53,0.00021156,2]
[338671063,1726861889267,-500.0,0.00021156,2]
[338671064,1726861889276,-1302.0,0.00021156,2]
[338671065,1726861889285,-866.38,0.00021156,2]
[338671066,1726861889295,-593.68,0.00021156,2]
[338671067,1726861889305,-244.71,0.00021156,2]
[338671068,1726861889316,-599.94,0.00021156,2]
[338671069,1726861889326,-500.0,0.00021156,2]
[338671070,1726861889335,-669.48,0.00021156,2]
[338671071,1726861889345,-2280.61,0.00021156,2]
[338671072,1726861889354,-726.3,0.00021156,2]
[338671073,1726861889363,-1026.75,0.00021156,2]
[338671074,1726861889373,-1084.68,0.00021156,2]
[338671075,1726861889382,-907.23,0.00021156,2]
[338671076,1726861889391,-572.31,0.00021156,2]
[338671077,1726861889401,-1116.57,0.00021156,2]
[338671078,1726861889410,-903.27,0.00021156,2]
[338671079,1726861889419,-653.87,0.00021156,2]
[338671080,1726861889430,-1050.13,0.00021156,2]
[338671081,1726861889440,-667.12,0.00021156,2]
[338671082,1726861889450,-596.06,0.00021156,2]
[338671083,1726861889460,-570.9,0.00021156,2]
[338671084,1726861889469,-500.0,0.00021156,2]
[338671085,1726861889478,-716.71,0.00021156,2]
[338671086,1726861889488,-581.36,0.00021156,2]
[338671087,1726861889497,-3000.0,0.0002116,2]
[338671088,1726861889507,-3000.0,0.0002117,2]
[338671089,1726861889516,-3000.0,0.0002118,2]
[338671090,1726861889525,-3000.0,0.0002119,2]
[338671091,1726861889535,-506.2980582,0.000212,2]
[338671092,1726861889544,-3000.0,0.000212,2]
[338671093,1726861889553,-3000.0,0.0002121,2]
[338671094,1726861889565,-3000.0,0.0002122,2]
[338671095,1726861889584,-3000.0,0.0002123,2]
[338671096,1726861889593,-3000.0,0.0002124,2]
[338671097,1726861889602,-3000.0,0.0002125,2]
[338671098,1726861889612,-3000.0,0.0002126,2]
[338671099,1726861889625,-3000.0,0.0002127,2]
[338671100,1726861889635,-3000.0,0.0002128,2]
[338671101,1726861889644,-3000.0,0.0002129,2]
[338671102,1726861889653,-3000.0,0.000213,2]
[338671103,1726861889663,-3000.0,0.0002131,2]
[338671104,1726861889672,-1152.0,0.00021317,2]
[338671105,1726861889681,-3000.0,0.0002132,2]
[338671106,1726861889690,-500.0,0.0002133,2]
[338671107,1726861889701,-3000.0,0.0002133,2]
[338671108,1726861889711,-3000.0,0.0002134,2]
[338671109,1726861889721,-3000.0,0.0002135,2]
[338671110,1726861889731,-1351.31,0.00021369,2]
[338671111,1726861889740,-514.61943222,0.00021369,2]
[338671112,1726861889749,-2528.93,0.00021369,2]
[338671113,1726861889758,-533.89,0.00021369,2]
[338671114,1726861889767,-578.26,0.0002143,2]
[338671115,1726861889777,-504.93,0.0002143,2]
[338671116,1726861889786,-599.04,0.0002143,2]
[338671117,1726861889798,-812.5,0.0002143,2]
[338671118,1726861889815,-636.19,0.0002143,2]
[338671119,1726861889824,-620.53,0.0002143,2]
[338671120,1726861889833,-581.10371377,0.0002143,2]
[338671121,1726861889974,-1302.0,0.0002143,2]
[338671122,1726861889986,-866.38,0.0002143,2]
[338671123,1726861889996,-593.68,0.0002143,2]
[338671124,1726861890006,-244.71,0.0002143,2]
[338671125,1726861890015,-599.94,0.0002143,2]
[338671126,1726861890025,-500.0,0.0002143,2]
[338671127,1726861890034,-669.48,0.0002143,2]
[338671128,1726861890044,-2280.61,0.0002143,2]
[338671129,1726861890053,-726.3,0.0002143,2]
[338671130,1726861890067,-1026.75,0.0002143,2]
[338671131,1726861890076,-1084.68,0.0002143,2]
[338671132,1726861890085,-907.23,0.0002143,2]
[338671133,1726861890094,-572.31,0.0002143,2]
[338671134,1726861890103,-1116.57,0.0002143,2]
[338671135,1726861890113,-903.27,0.0002143,2]
[338671136,1726861890122,-653.87,0.0002143,2]
[338671137,1726861890131,-1050.13,0.0002143,2]
[338671138,1726861890140,-667.12,0.0002143,2]
[338671139,1726861890150,-596.06,0.0002143,2]
[338671140,1726861890159,-570.9,0.0002143,2]
[338671141,1726861890169,-500.0,0.0002143,2]
[338671142,1726861890178,-716.71,0.0002143,2]
[338671143,1726861890188,-581.36,0.0002143,2]
[338671144,1726861890197,-680.0,0.000215,2]
[338671145,1726861890206,-751.58,0.000216,31]
[338671146,1726861890215,-751.58,0.000216,31]
[338671147,1726861890225,-751.58,0.000216,31]
[338671148,1726861890235,-751.58,0.000216,31]
[338671149,1726861890244,-751.58,0.000216,31]
[338671150,1726861890253,-751.58,0.000216,31]
[338671151,1726861890263,-751.58,0.000216,31]
[338671152,1726861890272,-751.58,0.000216,31]
[338671153,1726861890281,-751.58,0.000216,31]
[338671154,1726861890290,-751.58,0.000216,31]
[338671155,1726861890300,-751.58,0.000216,31]
[338671156,1726861890312,-751.58,0.000216,31]
[338671157,1726861890321,-751.58,0.000216,31]
[338671158,1726861890330,-751.58,0.000216,31]
[338671159,1726861890340,-751.58,0.000216,31]
[338671160,1726861890349,-751.58,0.000216,31]
[338671161,1726861890358,-751.58,0.000216,31]
[338671162,1726861890367,-751.58,0.000216,31]
[338671163,1726861890376,-751.58,0.000216,31]
[338671164,1726861890385,-751.58,0.000216,31]
[338671165,1726861890394,-751.58,0.000216,31]
[338671166,1726861890403,-751.58,0.000216,31]
[338671167,1726861890412,-751.58,0.000216,31]
[338671168,1726861890421,-751.58,0.000216,31]
[338671169,1726861890431,-201.8354212,0.00021631,2]
[338671170,1726861890441,-1351.31,0.00021643,2]
[338671171,1726861890450,-2528.93,0.00021643,2]
[338671172,1726861890459,-533.89,0.00021643,2]
[338671173,1726861890468,-411.651906,0.00021644,2]
[338671174,1726861890477,-411.651906,0.00021644,2]
[338671175,1726861890487,-1876.33839844,0.00021687,2]
[338671176,1726861890497,-795.44750961,0.00021687,2]
[338671177,1726861890506,-2000.0,0.00021687,2]
[338671178,1726861890516,-578.26,0.00021704,2]
[338671179,1726861890525,-504.93,0.00021704,2]
[338671180,1726861890534,-599.04,0.00021704,2]
[338671181,1726861890544,-812.5,0.00021704,2]
[338671182,1726861890555,-636.19,0.00021704,2]
[338671183,1726861890566,-620.53,0.00021704,2]
[338671184,1726861890575,-1302.0,0.00021704,2]
[338671185,1726861890586,-866.38,0.00021704,2]
[338671186,1726861890596,-593.68,0.00021704,2]
[338671187,1726861890607,-244.71,0.00021704,2]
[338671188,1726861890617,-599.94,0.00021704,2]
[338671189,1726861890631,-243.63840056,0.00021704,2]
[338671190,1726861890640,-669.48,0.00021704,2]
[338671191,1726861890649,-2280.61,0.00021704,2]
[338671192,1726861890658,-726.3,0.00021704,2]
[338671193,1726861890668,-1026.75,0.00021704,2]
[338671194,1726861890678,-1084.68,0.00021704,2]
[338671195,1726861890688,-907.23,0.00021704,2]
[338671196,1726861890700,-572.31,0.00021704,2]
[338671197,1726861890709,-1116.57,0.00021704,2]
[338671198,1726861890719,-903.27,0.00021704,2]
[338671199,1726861890729,-653.87,0.00021704,2]
[338671200,1726861890738,-1050.13,0.00021704,2]
[338671201,1726861890747,-667.12,0.00021704,2]
[338671202,1726861890756,-596.06,0.00021704,2]
[338671203,1726861890765,-570.9,0.00021704,2]
[338671204,1726861890774,-500.0,0.00021704,2]
[338671205,1726861890783,-716.71,0.00021704,2]
[338671206,1726861890792,-581.36,0.00021704,2]
[338671207,1726861890801,-153.0,0.00021726,2]
[338671208,1726861890811,-153.0,0.00021726,2]
[338671209,1726861890820,-153.0,0.00021726,2]
[338671210,1726861890829,-68042.12602263,0.000218,2]
[338671211,1726861890838,-153.0,0.00021836,2]
[338671212,1726861890847,-2004.14963,0.00021878,2]
[338671213,1726861890856,-1351.31,0.00021917,2]
[338671214,1726861890865,-2528.93,0.00021917,2]
[338671215,1726861890874,-533.89,0.00021917,2]
[338671216,1726861890883,-500.0,0.00021917,7]
[338671217,1726861890892,-500.0,0.00021917,7]
[338671218,1726861890902,-500.0,0.00021917,7]
[338671219,1726861890911,-500.0,0.00021917,7]
[338671220,1726861890920,-500.0,0.00021917,7]
[338671221,1726861890930,-500.0,0.00021917,7]
[338671222,1726861890939,-500.0,0.00021917,7]
[338671223,1726861890949,-500.0,0.00021917,7]
[338671224,1726861890958,-500.0,0.00021917,7]
[338671225,1726861890967,-500.0,0.00021917,7]
[338671226,1726861890976,-573.69779585,0.00021917,7]
[338671227,1726861890986,-1000.0,0.00021917,5]
[338671228,1726861890996,-1000.0,0.00021917,5]
[338671229,1726861891006,-1000.0,0.00021917,5]
[338671230,1726861891017,-811.63351164,0.00021917,5]
[338671231,1726861891029,-500.0,0.00021917,2]
[338671232,1726861891038,-500.0,0.00021917,2]
[338671233,1726861891048,-504.85063148,0.00021917,2]
[338671234,1726861891057,-500.0,0.00021917,2]
[338671235,1726861891067,-500.0,0.00021917,2]
[338671236,1726861891076,-500.0,0.00021917,2]
[338671237,1726861891085,-500.0,0.00021917,2]
[338671238,1726861891093,-500.0,0.00021917,2]
[338671239,1726861891103,-337.79094145,0.00021917,2]
[338671240,1726861891114,-2000.0,0.00021917,2]
[338671241,1726861891125,-2000.0,0.00021917,2]
[338671242,1726861891137,-2000.0,0.00021917,2]
[338671243,1726861891147,-2000.0,0.00021917,2]
[338671244,1726861891157,-2000.0,0.00021917,2]
[338671245,1726861891167,-2000.0,0.00021917,2]
[338671246,1726861891176,-2000.0,0.00021917,2]
[338671247,1726861891185,-2000.0,0.00021917,2]
[338671248,1726861891195,-2000.0,0.00021917,2]
[338671249,1726861891205,-2000.0,0.00021917,2]
[338671250,1726861891215,-2000.0,0.00021917,2]
[338671251,1726861891227,-2000.0,0.00021917,2]
[338671252,1726861891237,-2000.0,0.00021917,2]
[338671253,1726861891247,-1755.79753628,0.00021917,2]
[338671254,1726861891256,-1153.88038,0.00021918,2]
[338671255,1726861891265,-1153.88038,0.00021918,2]
[338671256,1726861891275,-1153.88038,0.00021918,2]
[338671257,1726861891286,-1153.88038,0.00021918,2]
[338671258,1726861891298,-1153.88038,0.00021918,2]
[338671259,1726861891307,-1153.88038,0.00021918,2]
[338671260,1726861891317,-1153.88038,0.00021918,2]
[338671261,1726861891329,-1153.88038,0.00021918,2]
[338671262,1726861891341,-1153.88038,0.00021918,2]
[338671263,1726861891352,-1153.88038,0.00021918,2]
[338671264,1726861891363,-1153.88038,0.00021918,2]
[338671265,1726861891372,-1153.88038,0.00021918,2]
[338671266,1726861891382,-1153.88038,0.00021918,2]
[338671267,1726861891392,-1153.88038,0.00021918,2]
[338671268,1726861891403,-1153.88038,0.00021918,2]
[338671269,1726861891414,-1153.88038,0.00021918,2]
[338671270,1726861891424,-1153.88038,0.00021918,2]
[338671271,1726861891434,-1153.88038,0.00021918,2]
[338671272,1726861891445,-1153.88038,0.00021918,2]
[338671273,1726861891456,-1153.880373,0.00021918,2]
[338671274,1726861891465,-305.5273742,0.00021918,2]
[338671275,1726861891476,-166.666666,0.00021918,2]
[338671276,1726861891485,-23280.4900069,0.00021918,2]
[338671277,1726861891497,-1263.2805419,0.00021918,7]
[338671278,1726861891507,-320.31115993,0.0002192,7]
[338671279,1726861891516,-320.31115993,0.0002192,7]
[338671280,1726861891526,-320.31115993,0.0002192,7]
[338671281,1726861891538,-320.31115993,0.0002192,7]
[338671282,1726861891551,-320.31115993,0.0002192,7]
[338671283,1726861891561,-320.31115993,0.0002192,7]
[338671284,1726861891572,-320.31115993,0.0002192,7]
[338671285,1726861891583,-320.31115993,0.0002192,7]
[338671286,1726861891593,-320.31115993,0.0002192,7]
[338671287,1726861891605,-320.31115993,0.0002192,7]
[338671288,1726861891617,-320.31115993,0.0002192,7]
[338671289,1726861891630,-320.31115993,0.0002192,7]
[338671290,1726861891642,-320.31115993,0.0002192,7]
[338671291,1726861891654,-320.31115993,0.0002192,7]
[338671292,1726861891664,-320.31115993,0.0002192,7]
[338671293,1726861891675,-320.31115993,0.0002192,7]
[338671294,1726861891686,-320.31115993,0.0002192,7]
[338671296,1726861891699,-320.31115993,0.0002192,7]
[338671297,1726861891711,-320.31115993,0.0002192,7]
[338671298,1726861891722,-320.81,0.0002192,7]
[338671299,1726861891735,-1281.31963972,0.0002192,7]
[338671300,1726861891746,-1281.31963972,0.0002192,7]
[338671301,1726861891758,-1281.31963972,0.0002192,7]
[338671302,1726861891769,-1281.31963972,0.0002192,7]
[338671303,1726861891780,-1281.31963972,0.0002192,7]
[338671304,1726861891791,-1281.31963972,0.0002192,7]
[338671305,1726861891803,-1281.31963972,0.0002192,7]
[338671306,1726861891816,-1281.31963972,0.0002192,7]
[338671307,1726861891829,-1281.31963972,0.0002192,7]
[338671308,1726861891842,-1281.31963972,0.0002192,7]
[338671309,1726861891852,-1281.31963972,0.0002192,7]
[338671310,1726861891863,-1281.31963972,0.0002192,7]
[338671311,1726861891874,-1281.31963972,0.0002192,7]
[338671312,1726861891886,-1281.31963972,0.0002192,7]
[338671313,1726861891896,-1281.31963972,0.0002192,7]
[338671314,1726861891908,-1281.31963972,0.0002192,7]
[338671315,1726861891920,-1281.31963972,0.0002192,7]
[338671316,1726861891930,-1281.31963972,0.0002192,7]
[338671317,1726861891941,-1281.31963972,0.0002192,7]
[338671318,1726861891950,-1281.81,0.0002192,7]
[338671319,1726861891959,-323.06512086,0.0002192,7]
[338671320,1726861891971,-323.06512086,0.0002192,7]
[338671321,1726861891983,-323.06512086,0.0002192,7]
[338671322,1726861891993,-323.06512086,0.0002192,7]
[338671323,1726861892002,-323.06512086,0.0002192,7]
[338671324,1726861892013,-323.06512086,0.0002192,7]
[338671325,1726861892022,-323.06512086,0.0002192,7]
[338671327,1726861892031,-323.06512086,0.0002192,7]
[338671328,1726861892043,-323.06512086,0.0002192,7]
[338671329,1726861892053,-323.06512086,0.0002192,7]
[338671330,1726861892062,-323.06512086,0.0002192,7]
[338671331,1726861892072,-323.06512086,0.0002192,7]
[338671332,1726861892081,-323.06512086,0.0002192,7]
[338671333,1726861892091,-323.06512086,0.0002192,7]
[338671334,1726861892100,-323.06512086,0.0002192,7]
[338671335,1726861892110,-323.06512086,0.0002192,7]
[338671336,1726861892120,-323.06512086,0.0002192,7]
[338671337,1726861892129,-323.06512086,0.0002192,7]
[338671338,1726861892138,-323.06512086,0.0002192,7]
[338671339,1726861892148,-323.56,0.0002192,7]
[338671340,1726861892157,-1292.33548343,0.0002192,7]
[338671341,1726861892167,-1292.33548343,0.0002192,7]
[338671342,1726861892176,-1292.33548343,0.0002192,7]
[338671343,1726861892185,-1292.33548343,0.0002192,7]
[338671344,1726861892195,-1292.33548343,0.0002192,7]
[338671345,1726861892204,-1292.33548343,0.0002192,7]
[338671346,1726861892214,-1292.33548343,0.0002192,7]
[338671347,1726861892223,-1292.33548343,0.0002192,7]
[338671348,1726861892232,-1292.33548343,0.0002192,7]
[338671349,1726861892242,-1292.33548343,0.0002192,7]
[338671350,1726861892252,-1292.33548343,0.0002192,7]
[338671351,1726861892261,-1292.33548343,0.0002192,7]
[338671352,1726861892272,-1292.33548343,0.0002192,7]
[338671353,1726861892282,-1292.33548343,0.0002192,7]
[338671354,1726861892292,-1292.33548343,0.0002192,7]
[338671355,1726861892303,-1292.33548343,0.0002192,7]
[338671356,1726861892314,-1292.33548343,0.0002192,7]
[338671357,1726861892324,-1292.33548343,0.0002192,7]
[338671358,1726861892334,-1292.33548343,0.0002192,7]
[338671359,1726861892345,-1292.83,0.0002192,7]
[338671360,1726861892355,-179.61028861,0.00021937,2]
[338671362,1726861892365,-411.651906,0.00021973,2]
[338671363,1726861892374,-411.651906,0.00021973,2]
[338671364,1726861892384,-411.651906,0.00021973,2]
[338671365,1726861892394,-411.651906,0.00021973,2]
[338671366,1726861892405,-411.651906,0.00021973,2]
[338671367,1726861892415,-411.651906,0.00021973,2]
[338671368,1726861892426,-411.651906,0.00021973,2]
[338671369,1726861892436,-411.651906,0.00021973,2]
[338671370,1726861892446,-411.651906,0.00021973,2]
[338671371,1726861892458,-411.651906,0.00021973,2]
[338671372,1726861892467,-411.651906,0.00021973,2]
[338671373,1726861892478,-411.651906,0.00021973,2]
[338671374,1726861892488,-411.651906,0.00021973,2]
[338671375,1726861892497,-411.651906,0.00021973,2]
[338671376,1726861892508,-411.651906,0.00021973,2]
[338671377,1726861892517,-411.651906,0.00021973,2]
[338671378,1726861892527,-411.651906,0.00021973,2]
[338671379,1726861892538,-411.651906,0.00021973,2]
[338671380,1726861892548,-411.651906,0.00021973,2]
[338671381,1726861892558,-411.651906,0.00021973,2]
[338671382,1726861892568,-411.651906,0.00021973,2]
[338671383,1726861892578,-411.651906,0.00021973,2]
[338671384,1726861892588,-411.651906,0.00021973,2]
[338671385,1726861892598,-411.651906,0.00021973,2]
[338671386,1726861892609,-411.651906,0.00021973,2]
[338671387,1726861892622,-411.651906,0.00021973,2]
[338671388,1726861892635,-411.651906,0.00021973,2]
[338671389,1726861892645,-411.651906,0.00021973,2]
[338671390,1726861892655,-411.651906,0.00021973,2]
[338671391,1726861892664,-411.651906,0.00021973,2]
[338671392,1726861892674,-578.49972948,0.00021978,2]
[338671394,1726861892683,-505.14160202,0.00021978,2]
[338671395,1726861892692,-599.21667443,0.00021978,2]
[338671396,1726861892703,-812.5,0.00021978,2]
[338671397,1726861892713,-636.26715002,0.00021978,2]
[338671398,1726861892724,-620.55868331,0.00021978,2]
[338671399,1726861892734,-1302.1129048,0.00021978,2]
[338671400,1726861892744,-866.58041867,0.00021978,2]
[338671401,1726861892754,-593.68871848,0.00021978,2]
[338671402,1726861892767,-244.80393293,0.00021978,2]
[338671403,1726861892777,-600.16955495,0.00021978,2]
[338671404,1726861892788,-669.56976484,0.00021978,2]
[338671405,1726861892797,-2280.81542823,0.00021978,2]
[338671406,1726861892807,-726.32820899,0.00021978,2]
[338671407,1726861892818,-1026.87815882,0.00021978,2]
[338671408,1726861892830,-1084.87268255,0.00021978,2]
[338671409,1726861892841,-907.41442252,0.00021978,2]
[338671410,1726861892850,-572.51073691,0.00021978,2]
[338671411,1726861892862,-1116.73814644,0.00021978,2]
[338671412,1726861892872,-903.35457343,0.00021978,2]
[338671413,1726861892882,-653.8708732,0.00021978,2]
[338671414,1726861892892,-1050.24170469,0.00021978,2]
[338671415,1726861892904,-667.17828035,0.00021978,2]
[338671416,1726861892914,-596.1291018,0.00021978,2]
[338671417,1726861892925,-571.0959013,0.00021978,2]
[338671418,1726861892936,-183.32909938,0.00021978,2]
[338671419,1726861892947,-716.89938152,0.00021978,2]
[338671420,1726861892958,-581.38980272,0.00021978,2]
[338671421,1726861892969,-680.0,0.00022,2]
[338671422,1726861892979,-1313.35736977,0.00022,2]
[338671423,1726861892989,-250.0,0.00022,10]
[338671424,1726861892999,-257.78,0.00022,2]
[338671425,1726861893010,-20906.76486674,0.0002201,16]
[338671426,1726861893020,-202.0,0.0002207,6]
[338671427,1726861893029,-1351.31,0.00022191,2]
[338671428,1726861893039,-2528.93,0.00022191,2]
[338671430,1726861893049,-533.89,0.00022191,2]
[338671431,1726861893059,-1319.07874823,0.000223,2]
[338671432,1726861893070,-411.651906,0.00022301,2]
[338671433,1726861893086,-411.651906,0.00022301,2]
[338671434,1726861893096,-512.84861195,0.00022396,2]
[338671435,1726861893106,-166.666666,0.00022431,2]
[338671436,1726861893116,-1351.31,0.00022465,2]
[338671437,1726861893128,-2528.93,0.00022465,2]
[338671438,1726861893137,-533.89,0.00022465,2]
[338671439,1726861893148,-680.0,0.000225,2]
[338671440,1726861893291,-150.0,0.00022677,2]
[338671441,1726861893303,-524.0,0.00022677,2]
[338671442,1726861893315,-1216.0,0.00022677,2]
[338671443,1726861893326,-1351.31,0.00022739,2]
[338671444,1726861893335,-2528.93,0.00022739,2]
[338671445,1726861893346,-534.0676479,0.00022739,2]
[338671446,1726861893356,-2500.0,0.00022878,2]
[338671447,1726861893366,-628.71719174,0.00022878,2]
[338671448,1726861893376,-1613.0,0.00022914,2]
[338671449,1726861893387,-166.666666,0.00022944,2]
[338671450,1726861893398,-1000.0,0.00023,23]
[338671451,1726861893408,-500.09,0.00023,10]
[338671452,1726861893418,-240.4740479,0.00023,2]
[338671453,1726861893429,-11447.80896535,0.00023,2]
[338671454,1726861893439,-680.0,0.00023,2]
[338671455,1726861893450,-200.0,0.00023,2]
[338671456,1726861893461,-787.0,0.00023,2]
[338671457,1726861893472,-200.0,0.00023,2]
[338671458,1726861893482,-200.0,0.00023,2]
[338671459,1726861893492,-1351.31,0.00023013,2]
[338671460,1726861893502,-2528.93,0.00023013,2]
[338671461,1726861893512,-259.4907471,0.00023123,2]
[338671462,1726861893523,-202.0,0.0002313,8]
[338671463,1726861893533,-2500.0,0.00023178,2]
[338671464,1726861893547,-1111.0,0.00023233,120]
[338671465,1726861893559,-1351.31,0.00023287,2]
[338671466,1726861893571,-2528.93,0.00023287,2]
[338671467,1726861893582,-500.0,0.00023287,2]
[338671468,1726861893593,-500.0,0.00023287,2]
[338671469,1726861893604,-500.0,0.00023287,2]
[338671470,1726861893614,-500.0,0.00023287,2]
[338671471,1726861893624,-500.0,0.00023287,2]
[338671472,1726861893635,-500.0,0.00023287,2]
[338671473,1726861893646,-500.0,0.00023287,2]
[338671474,1726861893656,-500.0,0.00023287,2]
[338671476,1726861893670,-500.0,0.00023287,2]
[338671477,1726861893680,-500.0,0.00023287,2]
[338671478,1726861893691,-589.3079508,0.00023287,2]
[338671479,1726861893702,-787.0,0.00023288,2]
[338671480,1726861893715,-751.58,0.000233,31]
[338671481,1726861893726,-751.58,0.000233,31]
[338671482,1726861893735,-751.58,0.000233,31]
[338671483,1726861893746,-751.58,0.000233,31]
[338671484,1726861893755,-751.58,0.000233,31]
[338671485,1726861893765,-751.58,0.000233,31]
[338671486,1726861893775,-751.58,0.000233,31]
[338671487,1726861893784,-751.58,0.000233,31]
[338671488,1726861893794,-751.58,0.000233,31]
[338671489,1726861893804,-751.58,0.000233,31]
[338671490,1726861893815,-751.58,0.000233,31]
[338671491,1726861893824,-751.58,0.000233,31]
[338671493,1726861893835,-751.58,0.000233,31]
[338671494,1726861893845,-751.58,0.000233,31]
[338671495,1726861893854,-751.58,0.000233,31]
[338671496,1726861893863,-751.58,0.000233,31]
[338671497,1726861893872,-751.58,0.000233,31]
[338671498,1726861893882,-751.58,0.000233,31]
[338671499,1726861893891,-751.58,0.000233,31]
[338671500,1726861893901,-751.58,0.000233,31]
[338671501,1726861893913,-751.58,0.000233,31]
[338671502,1726861893923,-751.58,0.000233,31]
[338671503,1726861893935,-751.58,0.000233,31]
[338671504,1726861893945,-751.58,0.000233,31]
[338671505,1726861893954,-2004.14963,0.00023309,2]
[338671506,1726861893964,-1613.0,0.00023449,2]
[338671507,1726861893976,-166.666666,0.00023456,2]
[338671508,1726861893987,-680.0,0.000235,2]
[338671509,1726861893998,-1351.31,0.00023561,2]
[338671510,1726861894009,-2528.93,0.00023561,2]
[338671511,1726861894019,-787.0,0.00023562,2]
[338671512,1726861894029,-253.06,0.00023732,2]
[338671513,1726861894039,-1351.31,0.00023835,2]
[338671514,1726861894051,-2528.93,0.00023835,2]
[338671515,1726861894060,-787.0,0.00023836,2]
[338671516,1726861894071,-166.666666,0.00023969,2]
[338671517,1726861894080,-1329.0,0.00023987,11]
[338671518,1726861894089,-3000.0,0.00024,5]
[338671519,1726861894098,-500.0,0.00024,2]
[338671520,1726861894109,-250.0,0.00024,10]
[338671521,1726861894118,-285.84089454,0.00024,30]
[338671522,1726861894128,-680.0,0.00024,2]
[338671523,1726861894137,-302.8788636,0.00024,2]
[338671524,1726861894146,-302.90913937,0.00024,2]
[338671525,1726861894156,-254.68704434,0.00024052,2]
[338671526,1726861894165,-500.0,0.00024081,2]
[338671527,1726861894175,-1351.31,0.00024109,2]
[338671528,1726861894184,-2528.93,0.00024109,2]
[338671529,1726861894195,-787.0,0.0002411,2]
[338671530,1726861894205,-787.0,0.00024164,2]
[338671531,1726861894214,-201.0,0.00024164,2]
[338671532,1726861894224,-349.0,0.0002419,10]
[338671533,1726861894235,-2000.0,0.000242,5]
[338671535,1726861894245,-302.8788636,0.0002424,2]
[338671536,1726861894254,-302.90913937,0.0002424,2]
[338671537,1726861894264,-2500.0,0.00024278,2]
[338671538,1726861894274,-1351.31,0.00024383,2]